fUSD/lending_fUSD_20260324
["ID","MTS","AMOUNT","RATE_DAILY","PERIOD"]
[408850993,1774338845995,-400.0,0.00046,120]
[408850994,1774338846004,-10000.0,0.00046,120]
[408850995,1774338846013,-147987.66,0.00046,7]
[408850996,1774338846022,-3633.2065768,0.00046,120]
[408850997,1774338846030,-1000000.0,0.00046,120]
[408850998,1774338846039,-3336.03615557,0.00046,120]
[408850999,1774338846048,-1000.0,0.00046,120]
[408851000,1774338846057,-5000.0,0.00046,120]
[408851001,1774338846066,-3000.0,0.00046,120]
[408851002,1774338846075,-173028.4158998,0.00046,120]
[408851003,1774338846084,-2000.0,0.00046,90]
[408851004,1774338846094,-1070.41603699,0.00046,120]
[408851005,1774338846102,-267.466077,0.00046,120]
[408851006,1774338846111,-151.0,0.00046,120]
[408851007,1774338846120,-387.65358272,0.00046,120]
[408851008,1774338846130,-102117.69915699,0.00046,120]
[408851009,1774338846138,-168.29972794,0.00046,60]
[408851010,1774338846147,-3160.16292498,0.00046,120]
[408851011,1774338846156,-1201.62445832,0.00046,120]
[408851012,1774338846166,-14000.0,0.00046,15]
[408851013,1774338846175,-659.1999582,0.00046,120]
[408851014,1774338846184,-13421.5,0.00046,120]
[408851015,1774338846193,-350.86029458,0.00046,30]
[408851016,1774338846202,-20000.0,0.00046,30]
[408851017,1774338846211,-630.2145661,0.00046,4]
[408851018,1774338846220,-5000.0,0.00046,120]
[408851019,1774338846230,-1482.49390381,0.00046,120]
[408851020,1774338846239,-801.25681862,0.00046,120]
[408851021,1774338846248,-56000.0,0.00046,120]
[408851022,1774338846258,-32191.1,0.00046,120]
[408851023,1774338846267,-303.665496,0.00046,120]
[408851024,1774338846276,-24895.07660782,0.00046,30]
[408851025,1774338846284,-150.0,0.00046,120]
[408851026,1774338846295,-150.0,0.00046004,120]
[408851027,1774338846305,-150.0,0.00046004,120]
[408851028,1774338846314,-150.0,0.00046004,120]
[408851029,1774338846323,-250.28497993,0.00046025,120]
[408851030,1774338846332,-5470.90349399,0.00046026,60]
[408851031,1774338846341,-743.4779064,0.00046027,120]
[408851032,1774338846350,-590.67,0.00046027,120]
[408851033,1774338846359,-1000.0,0.00046027,120]
[408851034,1774338846368,-705.66,0.00046027,120]
[408851035,1774338846377,-943.74,0.00046027,120]
[408851036,1774338846386,-500.0,0.00046027,120]
[408851037,1774338846395,-507.3,0.00046027,120]
[408851038,1774338846404,-568.39,0.00046027,120]
[408851039,1774338846417,-729.64,0.00046027,120]
[408851040,1774338846426,-639.9,0.00046027,120]
[408851041,1774338846435,-651.21,0.00046027,120]
[408851042,1774338846443,-524.6,0.00046027,120]
[408851043,1774338846454,-978.66,0.00046027,120]
[408851044,1774338846463,-1180.13,0.00046027,120]
[408851045,1774338846472,-500.0,0.00046027,120]
[408851046,1774338846482,-574.37,0.00046027,120]
[408851047,1774338846492,-1281.45,0.00046027,120]
[408851048,1774338846501,-1329.75,0.00046027,120]
[408851049,1774338846510,-500.0,0.00046027,120]
[408851050,1774338846519,-880.66,0.00046027,5]
[408851051,1774338846528,-599.98,0.00046027,120]
[408851052,1774338846538,-651.22,0.00046027,120]
[408851053,1774338846547,-500.0,0.00046027,120]
[408851054,1774338846556,-539.9,0.00046027,120]
[408851055,1774338846566,-604.85,0.00046027,120]
[408851056,1774338846575,-1076.85,0.00046027,120]
[408851057,1774338846584,-766.13,0.00046027,120]
[408851058,1774338846594,-617.48,0.00046027,120]
[408851059,1774338846603,-500.0,0.00046027,120]
[408851060,1774338846613,-835.56,0.00046027,120]
[408851061,1774338846623,-792.41,0.00046027,120]
[408851062,1774338846634,-500.0,0.00046027,120]
[408851063,1774338846644,-1234.56,0.00046027,120]
[408851064,1774338846653,-890.18,0.00046027,120]
[408851065,1774338846663,-500.0,0.00046027,120]
[408851066,1774338846673,-1024.48,0.00046027,120]
[408851067,1774338846683,-500.0,0.00046027,120]
[408851068,1774338846692,-766.51,0.00046027,120]
[408851069,1774338846702,-677.14,0.00046027,120]
[408851070,1774338846712,-2135.18,0.00046027,120]
[408851071,1774338846721,-563.34,0.00046027,120]
[408851072,1774338846731,-1402.94,0.00046027,120]
[408851073,1774338846741,-761.77,0.00046027,120]
[408851074,1774338846751,-1465.28,0.00046027,120]
[408851075,1774338846760,-500.0,0.00046027,120]
[408851076,1774338846771,-500.0,0.00046027,120]
[408851077,1774338846780,-598.21,0.00046027,120]
[408851078,1774338846789,-1412.93,0.00046027,120]
[408851079,1774338846798,-500.0,0.00046027,120]
[408851080,1774338846808,-846.4,0.00046027,120]
[408851081,1774338846818,-500.0,0.00046027,120]
[408851082,1774338846827,-804.53,0.00046027,120]
[408851083,1774338846837,-862.09,0.00046027,120]
[408851084,1774338846846,-967.16,0.00046027,120]
[408851085,1774338846855,-649.68,0.00046027,120]
[408851086,1774338846864,-897.41,0.00046027,120]
[408851087,1774338846873,-1647.3,0.00046027,120]
[408851088,1774338846882,-500.0,0.00046027,120]
[408851089,1774338846891,-932.54,0.00046027,120]
[408851090,1774338846900,-1817.92,0.00046027,120]
[408851091,1774338846909,-500.0,0.00046027,120]
[408851092,1774338846919,-1328.91,0.00046027,120]
[408851093,1774338846928,-1294.19,0.00046027,120]
[408851094,1774338846937,-500.0,0.00046027,120]
[408851095,1774338846946,-3681.23,0.00046027,120]
[408851096,1774338846957,-323.25876753,0.00046027,120]
[408851097,1774338846967,-644.74,0.00046027,120]
[408851098,1774338846977,-688.63,0.00046027,120]
[408851099,1774338846986,-572.14,0.00046027,120]
[408851100,1774338846996,-500.0,0.00046027,120]
[408851101,1774338847006,-1109.47,0.00046027,120]
[408851102,1774338847016,-1361.64,0.00046027,120]
[408851103,1774338847026,-500.0,0.00046027,120]
[408851104,1774338847036,-1113.98,0.00046027,120]
[408851105,1774338847046,-804.84,0.00046027,120]
[408851106,1774338847056,-587.8,0.00046027,120]
[408851107,1774338847066,-895.35,0.00046027,120]
[408851108,1774338847076,-640.6,0.00046027,120]
[408851109,1774338847086,-1353.62,0.00046027,120]
[408851110,1774338847097,-549.21162117,0.00046027,120]
[408851111,1774338847109,-500.0,0.00046027,120]
[408851112,1774338847119,-663.05,0.00046027,120]
[408851113,1774338847129,-2022.99,0.00046027,120]
[408851114,1774338847140,-993.61,0.00046027,120]
[408851115,1774338847149,-526.3,0.00046027,120]
[408851116,1774338847159,-803.74,0.00046027,120]
[408851117,1774338847169,-500.0,0.00046027,120]
[408851118,1774338847179,-593.39,0.00046027,120]
[408851119,1774338847189,-773.48,0.00046027,120]
[408851120,1774338847198,-500.0,0.00046027,120]
[408851121,1774338847208,-500.0,0.00046027,120]
[408851122,1774338847219,-1169.17,0.00046027,120]
[408851123,1774338847228,-1339.98,0.00046027,120]
[408851124,1774338847238,-525.47330976,0.00046027,120]
[408851125,1774338847248,-599.34,0.00046027,120]
[408851126,1774338847257,-551.15,0.00046027,120]
[408851127,1774338847267,-1698.32,0.00046027,120]
[408851128,1774338847277,-1450.66,0.00046027,120]
[408851129,1774338847287,-818.03,0.00046027,120]
[408851130,1774338847297,-620.94,0.00046027,2]
[408851131,1774338847307,-500.0,0.00046027,120]
[408851132,1774338847317,-500.0,0.00046027,120]
[408851133,1774338847327,-500.0,0.00046027,120]
[408851134,1774338847337,-1515.34,0.00046027,120]
[408851135,1774338847347,-4192.59,0.00046027,120]
[408851136,1774338847357,-2475.9,0.00046027,120]
[408851137,1774338847367,-500.0,0.00046027,120]
[408851138,1774338847377,-500.0,0.00046027,120]
[408851139,1774338847387,-2035.37,0.00046027,120]
[408851140,1774338847397,-1009.33,0.00046027,120]
[408851141,1774338847409,-857.75,0.00046027,120]
[408851142,1774338847420,-944.17,0.00046027,120]
[408851143,1774338847431,-1317.86,0.00046027,30]
[408851144,1774338847441,-826.35,0.00046027,120]
[408851145,1774338847451,-1144.87,0.00046027,120]
[408851146,1774338847460,-588.23,0.00046027,120]
[408851147,1774338847470,-500.0,0.00046027,120]
[408851148,1774338847480,-895.15,0.00046027,120]
[408851149,1774338847492,-1197.62,0.00046027,120]
[408851150,1774338847503,-1494.6,0.00046027,120]
[408851151,1774338847513,-1086.62,0.00046027,120]
[408851152,1774338847522,-205.11464608,0.00046027,120]
[408851153,1774338847532,-288.28724214,0.00046027,120]
[408851154,1774338847542,-946.8,0.00046027,120]
[408851155,1774338847552,-500.0,0.00046027,120]
[408851156,1774338847562,-713.74,0.00046027,120]
[408851157,1774338847572,-6072.1,0.00046027,120]
[408851158,1774338847581,-826.7,0.00046027,120]
[408851159,1774338847591,-552.86,0.00046027,120]
[408851160,1774338847602,-926.79,0.00046027,120]
[408851161,1774338847612,-2329.55,0.00046027,120]
[408851162,1774338847623,-1989.66,0.00046027,30]
[408851163,1774338847633,-847.68,0.00046027,120]
[408851164,1774338847642,-1646.81,0.00046027,120]
[408851165,1774338847653,-1090.68,0.00046027,120]
[408851166,1774338847663,-1885.93,0.00046027,120]
[408851167,1774338847673,-741.6,0.00046027,120]
[408851168,1774338847683,-500.0,0.00046027,120]
[408851169,1774338847693,-727.16,0.00046027,120]
[408851170,1774338847703,-712.06,0.00046027,120]
[408851171,1774338847713,-2107.35,0.00046027,120]
[408851172,1774338847723,-617.58,0.00046027,120]
[408851173,1774338847734,-2133.23,0.00046027,120]
[408851174,1774338847744,-5833.33,0.00046027,120]
[408851175,1774338847754,-1039.39,0.00046027,120]
[408851176,1774338847765,-2468.56,0.00046027,120]
[408851177,1774338847775,-1366.12,0.00046027,120]
[408851178,1774338847784,-577.52966417,0.00046027,120]
[408851179,1774338847796,-1016.32,0.00046027,120]
[408851180,1774338847807,-784.59,0.00046027,120]
[408851181,1774338847817,-1478.69,0.00046027,120]
[408851182,1774338847828,-1259.9,0.00046027,120]
[408851183,1774338847838,-1107.99,0.00046027,120]
[408851184,1774338847847,-1114.05,0.00046027,120]
[408851185,1774338847857,-1519.93,0.00046027,120]
[408851186,1774338847867,-646.06,0.00046027,120]
[408851187,1774338847877,-1266.58,0.00046027,120]
[408851188,1774338847887,-1009.25,0.00046027,120]
[408851189,1774338847897,-707.37,0.00046027,120]
[408851190,1774338847908,-1156.03,0.00046027,14]
[408851191,1774338847918,-999.55,0.00046027,120]
[408851192,1774338847928,-970.63,0.00046027,120]
[408851193,1774338847938,-650.62,0.00046027,30]
[408851194,1774338847949,-725.53,0.00046027,120]
[408851195,1774338847959,-500.0,0.00046027,120]
[408851196,1774338847969,-1014.92,0.00046027,120]
[408851197,1774338847978,-2689.33,0.00046027,120]
[408851198,1774338847988,-500.0,0.00046027,120]
[408851199,1774338847997,-264.67325054,0.00046027,120]
[408851200,1774338848007,-1544.85,0.00046027,120]
[408851201,1774338848017,-1269.14,0.00046027,120]
[408851202,1774338848027,-500.0,0.00046027,120]
[408851203,1774338848037,-665.15,0.00046027,120]
[408851204,1774338848047,-680.42,0.00046027,120]
[408851205,1774338848057,-500.0,0.00046027,120]
[408851206,1774338848067,-500.0,0.00046027,120]
[408851207,1774338848076,-1769.26,0.00046027,120]
[408851208,1774338848086,-512.42,0.00046027,120]
[408851209,1774338848096,-604.1200005,0.00046027,120]
[408851210,1774338848106,-1705.77,0.00046027,120]
[408851211,1774338848115,-978.43,0.00046027,120]
[408851212,1774338848125,-500.0,0.00046027,120]
[408851213,1774338848136,-634.01242066,0.00046027,120]
[408851214,1774338848151,-1215.44,0.00046027,120]
[408851215,1774338848161,-500.0,0.00046027,120]
[408851216,1774338848171,-1046.27,0.00046027,120]
[408851217,1774338848180,-500.0,0.00046027,120]
[408851218,1774338848190,-500.0,0.00046027,120]
[408851219,1774338848200,-1897.96,0.00046027,120]
[408851220,1774338848209,-770.58,0.00046027,120]
[408851221,1774338848219,-1960.33,0.00046027,120]
[408851222,1774338848229,-1613.72,0.00046027,120]
[408851223,1774338848239,-3056.27,0.00046027,120]
[408851224,1774338848250,-1228.99,0.00046027,120]
[408851225,1774338848260,-680.28,0.00046027,120]
[408851226,1774338848271,-769.44,0.00046027,120]
[408851227,1774338848281,-500.0,0.00046027,120]
[408851228,1774338848291,-207.89477347,0.00046027,120]
[408851229,1774338848300,-500.0,0.00046027,120]
[408851230,1774338848310,-500.0,0.00046027,120]
[408851231,1774338848319,-1078.9,0.00046027,120]
[408851232,1774338848329,-1780.32,0.00046027,120]
[408851233,1774338848339,-1099.3,0.00046027,120]
[408851234,1774338848350,-699.82,0.00046027,120]
[408851235,1774338848360,-855.78,0.00046027,120]
[408851236,1774338848369,-759.17,0.00046027,120]
[408851237,1774338848380,-815.17,0.00046027,120]
[408851238,1774338848390,-931.09,0.00046027,120]
[408851239,1774338848400,-371.54679561,0.00046027,120]
[408851240,1774338848412,-656.8,0.00046027,120]
[408851241,1774338848423,-614.51,0.00046027,120]
[408851242,1774338848433,-671.25,0.00046027,120]
[408851243,1774338848443,-1323.85,0.00046027,7]
[408851244,1774338848454,-500.0,0.00046027,14]
[408851245,1774338848463,-189.99367209,0.00046027,120]
[408851246,1774338848474,-984.57,0.00046027,120]
[408851247,1774338848485,-500.0,0.00046027,120]
[408851248,1774338848495,-729.45,0.00046027,120]
[408851249,1774338848505,-926.4,0.00046027,120]
[408851250,1774338848514,-1291.11,0.00046027,120]
[408851251,1774338848524,-560.4,0.00046027,120]
[408851252,1774338848534,-617.21,0.00046027,120]
[408851253,1774338848545,-1726.06,0.00046027,120]
[408851254,1774338848555,-500.0,0.00046027,120]
[408851255,1774338848566,-500.0,0.00046027,120]
[408851256,1774338848576,-1356.13,0.00046027,120]
[408851257,1774338848587,-801.87,0.00046027,120]
[408851258,1774338848598,-821.12,0.00046027,120]
[408851259,1774338848608,-866.85,0.00046027,120]
[408851260,1774338848619,-500.0,0.00046027,120]
[408851261,1774338848629,-173.27928145,0.00046027,120]
[408851262,1774338848639,-2922.62,0.00046027,60]
[408851263,1774338848649,-2859.83,0.00046027,120]
[408851264,1774338848688,-665.38,0.00046027,120]
[408851265,1774338848699,-644.49,0.00046027,120]
[408851266,1774338848709,-719.59,0.00046027,120]
[408851267,1774338848720,-4166.66,0.00046027,120]
[408851268,1774338848731,-679.57,0.00046027,120]
[408851269,1774338848742,-599.93,0.00046027,120]
[408851270,1774338848753,-160.07578998,0.00046027,120]
[408851271,1774338848763,-1432.07,0.00046027,120]
[408851272,1774338848773,-730.01,0.00046027,120]
[408851273,1774338848784,-883.47,0.00046027,120]
[408851274,1774338848794,-508.87,0.00046027,120]
[408851275,1774338848804,-500.0,0.00046027,120]
[408851276,1774338848814,-759.73,0.00046027,120]
[408851277,1774338848824,-1171.93,0.00046027,120]
[408851278,1774338848834,-892.78,0.00046027,120]
[408851279,1774338848844,-749.74,0.00046027,120]
[408851280,1774338848854,-978.13,0.00046027,120]
[408851281,1774338848865,-674.49,0.00046027,120]
[408851282,1774338848875,-1973.42,0.00046027,120]
[408851283,1774338848885,-1044.01,0.00046027,120]
[408851284,1774338848896,-1355.12,0.00046027,120]
[408851285,1774338848906,-500.0,0.00046027,120]
[408851286,1774338848917,-786.73,0.00046027,120]
[408851287,1774338848928,-1476.03,0.00046027,120]
[408851288,1774338848938,-647.98,0.00046027,120]
[408851289,1774338848948,-947.33,0.00046027,120]
[408851290,1774338848959,-924.76,0.00046027,120]
[408851291,1774338848970,-590.04,0.00046027,120]
[408851292,1774338848982,-1633.92,0.00046027,120]
[408851293,1774338848992,-1295.04,0.00046027,120]
[408851294,1774338849003,-1441.35,0.00046027,60]
[408851295,1774338849014,-1951.73,0.00046027,120]
[408851296,1774338849024,-588.11,0.00046027,120]
[408851297,1774338849034,-2782.79,0.00046027,120]
[408851298,1774338849045,-605.44,0.00046027,120]
[408851299,1774338849055,-894.69,0.00046027,120]
[408851300,1774338849065,-525.27,0.00046027,120]
[408851301,1774338849076,-500.0,0.00046027,120]
[408851302,1774338849087,-1730.58,0.00046027,120]
[408851303,1774338849099,-517.76,0.00046027,120]
[408851304,1774338849109,-1269.84,0.00046027,120]
[408851305,1774338849119,-1536.15,0.00046027,120]
[408851306,1774338849129,-600.11,0.00046027,120]
[408851307,1774338849139,-1493.36,0.00046027,120]
[408851308,1774338849149,-1551.97,0.00046027,120]
[408851309,1774338849159,-632.12,0.00046027,120]
[408851310,1774338849170,-724.43,0.00046027,120]
[408851311,1774338849180,-2431.7,0.00046027,120]
[408851312,1774338849190,-1747.14,0.00046027,120]
[408851313,1774338849201,-1632.69,0.00046027,120]
[408851314,1774338849211,-1186.56,0.00046027,120]
[408851315,1774338849221,-1598.01,0.00046027,120]
[408851316,1774338849232,-500.0,0.00046027,120]
[408851317,1774338849242,-500.0,0.00046027,120]
[408851318,1774338849252,-517.15,0.00046027,120]
[408851319,1774338849262,-1075.02,0.00046027,120]
[408851320,1774338849272,-1616.03,0.00046027,120]
[408851321,1774338849287,-304.13835971,0.00046027,120]
[408851322,1774338849297,-161.66579,0.00046027,120]
[408851323,1774338849306,-1428.85,0.00046027,120]
[408851324,1774338849316,-500.0,0.00046027,120]
[408851325,1774338849326,-500.0,0.00046027,120]
[408851326,1774338849336,-665.63,0.00046027,120]
[408851327,1774338849671,-866.03,0.00046027,120]
[408851328,1774338849681,-1926.05,0.00046027,120]
[408851329,1774338849691,-2687.41,0.00046027,120]
[408851330,1774338849700,-728.07,0.00046027,120]
[408851331,1774338849710,-638.16,0.00046027,120]
[408851332,1774338849720,-500.0,0.00046027,120]
[408851333,1774338849731,-604.38,0.00046027,120]
[408851334,1774338849740,-1493.48,0.00046027,30]
[408851335,1774338849750,-801.43,0.00046027,120]
[408851336,1774338849761,-752.4,0.00046027,120]
[408851337,1774338849772,-552.47,0.00046027,120]
[408851338,1774338849782,-995.77,0.00046027,120]
[408851339,1774338849793,-500.0,0.00046027,120]
[408851340,1774338849804,-878.89,0.00046027,120]
[408851341,1774338849814,-2173.76,0.00046027,120]
[408851342,1774338849824,-1298.61,0.00046027,120]
[408851343,1774338849834,-1791.61,0.00046027,120]
[408851344,1774338849843,-1260.51,0.00046027,120]
[408851345,1774338849853,-663.27,0.00046027,120]
[408851346,1774338849863,-500.0,0.00046027,120]
[408851347,1774338849872,-1454.94,0.00046027,120]
[408851348,1774338849881,-1108.88,0.00046027,120]
[408851349,1774338849891,-1258.26,0.00046027,120]
[408851350,1774338849901,-500.0,0.00046027,120]
[408851351,1774338849910,-631.57,0.00046027,120]
[408851352,1774338849920,-1791.18,0.00046027,120]
[408851353,1774338849930,-514.08,0.00046027,120]
[408851354,1774338849940,-585.76,0.00046027,120]
[408851355,1774338849949,-1447.52,0.00046027,120]
[408851356,1774338849959,-1601.87,0.00046027,120]
[408851357,1774338849969,-634.53,0.00046027,120]
[408851358,1774338849978,-500.0,0.00046027,120]
[408851359,1774338849991,-500.0,0.00046027,120]
[408851360,1774338850001,-514.43,0.00046027,120]
[408851361,1774338850010,-1530.3,0.00046027,120]
[408851362,1774338850020,-1437.77,0.00046027,120]
[408851363,1774338850029,-735.64,0.00046027,120]
[408851364,1774338850039,-798.73,0.00046027,120]
[408851365,1774338850049,-534.31,0.00046027,120]
[408851366,1774338850058,-2864.08,0.00046027,120]
[408851367,1774338850069,-500.0,0.00046027,120]
[408851368,1774338850080,-800.61,0.00046027,120]
[408851369,1774338850090,-500.0,0.00046027,120]
[408851370,1774338850099,-500.0,0.00046027,120]
[408851371,1774338850109,-1519.14,0.00046027,120]
[408851372,1774338850119,-971.22,0.00046027,120]
[408851373,1774338850128,-2175.73,0.00046027,120]
[408851374,1774338850138,-651.63,0.00046027,120]
[408851375,1774338850147,-579.61,0.00046027,120]
[408851376,1774338850156,-500.0,0.00046027,120]
[408851377,1774338850167,-769.19,0.00046027,120]
[408851378,1774338850177,-666.77,0.00046027,120]
[408851379,1774338850187,-1046.52,0.00046027,120]
[408851380,1774338850197,-1404.43,0.00046027,120]
[408851381,1774338850206,-547.19,0.00046027,120]
[408851382,1774338850217,-613.47,0.00046027,120]
[408851383,1774338850227,-664.14,0.00046027,120]
[408851384,1774338850238,-500.55,0.00046027,120]
[408851385,1774338850247,-1409.42,0.00046027,120]
[408851386,1774338850257,-1958.04,0.00046027,120]
[408851387,1774338850267,-500.0,0.00046027,120]
[408851388,1774338850277,-845.98,0.00046027,120]
[408851389,1774338850288,-788.97,0.00046027,120]
[408851390,1774338850297,-979.08,0.00046027,120]
[408851391,1774338850306,-2271.51,0.00046027,120]
[408851392,1774338850315,-798.9,0.00046027,120]
[408851393,1774338850325,-785.73,0.00046027,120]
[408851394,1774338850335,-1319.48,0.00046027,120]
[408851395,1774338850345,-898.9,0.00046027,120]
[408851396,1774338850354,-1026.81,0.00046027,120]
[408851397,1774338850364,-896.49,0.00046027,2]
[408851398,1774338850374,-591.09,0.00046027,120]
[408851399,1774338850384,-1571.69,0.00046027,120]
[408851400,1774338850395,-951.54,0.00046027,120]
[408851401,1774338850405,-1576.67,0.00046027,120]
[408851402,1774338850419,-533.43,0.00046027,120]
[408851403,1774338850428,-1797.77,0.00046027,120]
[408851404,1774338850438,-641.68,0.00046027,30]
[408851405,1774338850447,-908.05,0.00046027,120]
[408851406,1774338850458,-500.0,0.00046027,120]
[408851407,1774338850468,-978.03,0.00046027,120]
[408851408,1774338850478,-500.0,0.00046027,120]
[408851409,1774338850489,-1254.4,0.00046027,120]
[408851410,1774338850498,-890.53,0.00046027,120]
[408851411,1774338850507,-794.03,0.00046027,120]
[408851412,1774338850517,-500.0,0.00046027,120]
[408851413,1774338850526,-588.33,0.00046027,120]
[408851414,1774338850536,-2073.54,0.00046027,120]
[408851415,1774338850546,-954.83,0.00046027,120]
[408851416,1774338850555,-642.99,0.00046027,120]
[408851417,1774338850565,-945.89,0.00046027,120]
[408851418,1774338850575,-2204.1,0.00046027,120]
[408851419,1774338850585,-610.5,0.00046027,120]
[408851420,1774338850596,-1685.9,0.00046027,120]
[408851421,1774338850606,-2030.17,0.00046027,30]
[408851422,1774338850615,-2121.36,0.00046027,120]
[408851423,1774338850626,-659.65,0.00046027,120]
[408851424,1774338850636,-534.01,0.00046027,120]
[408851425,1774338850646,-1204.77,0.00046027,120]
[408851426,1774338850656,-2554.76,0.00046027,120]
[408851427,1774338850667,-1000.85,0.00046027,120]
[408851428,1774338850678,-618.78,0.00046027,120]
[408851429,1774338850694,-976.45,0.00046027,120]
[408851430,1774338850703,-526.89374614,0.00046027,30]
[408851431,1774338850714,-1990.0,0.00046027,120]
[408851432,1774338850723,-1087.07,0.00046027,120]
[408851433,1774338850733,-758.91,0.00046027,120]
[408851434,1774338850743,-861.35,0.00046027,120]
[408851435,1774338850752,-639.53,0.00046027,120]
[408851436,1774338850763,-964.47,0.00046027,120]
[408851437,1774338850772,-1790.64,0.00046027,120]
[408851438,1774338850782,-817.12,0.00046027,120]
[408851439,1774338850791,-500.0,0.00046027,120]
[408851440,1774338850801,-1048.96,0.00046027,120]
[408851441,1774338850811,-500.0,0.00046027,120]
[408851442,1774338850820,-617.31,0.00046027,120]
[408851443,1774338850830,-1377.48,0.00046027,120]
[408851444,1774338850839,-950.57,0.00046027,120]
[408851445,1774338850848,-1373.09,0.00046027,120]
[408851446,1774338850858,-640.41367298,0.00046027,120]
[408851447,1774338850867,-1252.8,0.00046027,120]
[408851448,1774338850876,-500.0,0.00046027,120]
[408851449,1774338850886,-3697.72,0.00046027,2]
[408851450,1774338850896,-1527.96,0.00046027,120]
[408851451,1774338850909,-589.22,0.00046027,120]
[408851452,1774338850918,-658.92,0.00046027,120]
[408851453,1774338850928,-541.68,0.00046027,120]
[408851454,1774338850938,-1047.63,0.00046027,120]
[408851455,1774338850948,-641.73,0.00046027,120]
[408851456,1774338850959,-570.14,0.00046027,120]
[408851457,1774338850970,-516.11,0.00046027,120]
[408851458,1774338850981,-1329.81,0.00046027,120]
[408851459,1774338850991,-2000.22,0.00046027,120]
[408851460,1774338851001,-1988.85,0.00046027,120]
[408851461,1774338851012,-2821.24,0.00046027,120]
[408851462,1774338851022,-627.92,0.00046027,120]
[408851463,1774338851032,-819.97,0.00046027,120]
[408851464,1774338851041,-1024.12,0.00046027,120]
[408851465,1774338851051,-1947.88,0.00046027,120]
[408851466,1774338851060,-500.0,0.00046027,120]
[408851467,1774338851071,-810.31,0.00046027,120]
[408851468,1774338851080,-1590.35,0.00046027,120]
[408851469,1774338851090,-688.15,0.00046027,120]
[408851470,1774338851099,-500.0,0.00046027,120]
[408851471,1774338851108,-4167.56,0.00046027,14]
[408851472,1774338851118,-515.79,0.00046027,120]
[408851473,1774338851127,-787.69,0.00046027,120]
[408851474,1774338851136,-698.8,0.00046027,120]
[408851475,1774338851147,-653.93,0.00046027,120]
[408851476,1774338851157,-866.06,0.00046027,120]
[408851477,1774338851167,-659.88,0.00046027,120]
[408851478,1774338851177,-2147.96,0.00046027,120]
[408851479,1774338851187,-936.69,0.00046027,120]
[408851480,1774338851196,-500.0,0.00046027,120]
[408851481,1774338851207,-898.82,0.00046027,120]
[408851482,1774338851217,-627.57,0.00046027,120]
[408851483,1774338851228,-1680.93,0.00046027,120]
[408851484,1774338851239,-400.0,0.00046027,120]
[408851485,1774338851248,-516.86,0.00046027,120]
[408851486,1774338851258,-1731.35,0.00046027,120]
[408851487,1774338851268,-570.78,0.00046027,120]
[408851488,1774338851278,-1894.96,0.00046027,120]
[408851489,1774338851288,-833.21,0.00046027,120]
[408851490,1774338851299,-500.0,0.00046027,120]
[408851491,1774338851309,-678.17,0.00046027,120]
[408851492,1774338851319,-1154.53,0.00046027,120]